bitfinex-derivatives/quotes_BTCF0:USTF0_20240817
["timestamp","ask_amount","ask_price","bid_price","bid_amount"]
[1723899859120,0.34,59255.0,59254.0,0.20282976]
[1723899859516,0.34,59255.0,59254.0,0.28696592]
[1723899859517,0.341,59255.0,59254.0,0.28696592]
[1723899859720,0.341,59255.0,59254.0,0.28696528]
[1723899860224,0.341,59255.0,59254.0,0.35024328]
[1723899860424,0.34,59255.0,59254.0,0.35222906]
[1723899860631,0.181,59255.0,59254.0,0.26810712]
[1723899860830,0.001,59255.0,59254.0,0.52512344]
[1723899861140,0.36105322,59260.0,59259.0,0.063272]
[1723899861141,0.00025322,59260.0,59259.0,0.063272]
[1723899861319,0.00025322,59260.0,59259.0,0.35940112]
[1723899861515,0.00025322,59260.0,59259.0,0.42353961]
[1723899862324,0.00025322,59260.0,59259.0,0.47183961]
[1723899862630,0.00025322,59260.0,59259.0,0.47283961]
[1723899862928,0.00990777,59268.0,59267.0,0.063264]
[1723899863123,0.517358,59273.0,59268.0,0.063263]
[1723899863328,0.607358,59273.0,59272.0,0.05039379]
[1723899863529,0.61700208,59273.0,59272.0,0.03712841]
[1723899863728,0.61700208,59273.0,59269.0,0.06719172]
[1723899863928,0.46044408,59273.0,59270.0,0.10432009]
[1723899864230,0.3608,59273.0,59272.0,0.13044972]
[1723899864427,0.3608,59273.0,59272.0,0.16757809]
[1723899864621,0.3608,59273.0,59272.0,0.10038637]
[1723899865128,0.3608,59274.0,59272.0,0.10138637]
[1723899865325,0.3608,59274.0,59272.0,0.064258]
[1723899865529,0.3608,59274.0,59273.0,0.05029365]
[1723899866120,0.3908,59274.0,59273.0,0.05029365]
[1723899866326,0.3908,59274.0,59272.0,0.11455165]
[1723899866527,0.0933,59273.0,59272.0,0.065258]
[1723899866718,0.1033,59273.0,59272.0,0.065258]
[1723899867325,0.1033,59273.0,59271.0,0.05029365]
[1723899867536,0.1033,59273.0,59270.0,0.05029365]
[1723899867717,0.0933,59271.0,59270.0,0.05029365]
[1723899867922,0.1033,59271.0,59270.0,0.05029365]
[1723899869326,0.1033,59271.0,59269.0,0.05029365]
[1723899869921,0.3608,59274.0,59271.0,0.063259]
[1723899870121,0.3708,59274.0,59271.0,0.063259]
[1723899870826,0.5308,59274.0,59272.0,0.063258]
[1723899871235,0.3708,59274.0,59272.0,0.063258]
[1723899871526,0.3708,59274.0,59272.0,0.156558]
[1723899873035,0.5108,59274.0,59272.0,0.156558]
[1723899873227,0.0933,59273.0,59272.0,0.063258]
[1723899873436,0.1433,59273.0,59272.0,0.065258]
[1723899874325,0.2833,59273.0,59272.0,0.065258]
[1723899876732,0.05,59273.0,59272.0,0.065258]
[1723899877038,0.3608,59274.0,59273.0,0.063257]
[1723899877827,0.0933,59278.0,59272.0,0.002]
[1723899878139,0.3608,59274.0,59273.0,0.063257]
[1723899879133,0.3608,59274.0,59273.0,0.001]
[1723899879530,0.3608,59274.0,59273.0,0.064257]
[1723899879733,0.3808,59274.0,59273.0,0.064257]
[1723899880138,0.3808,59274.0,59273.0,0.065257]
[1723899883442,0.02,59274.0,59273.0,0.065257]
[1723899883652,0.3808,59274.0,59273.0,0.065257]
[1723899884938,0.02,59274.0,59273.0,0.065257]
[1723899885240,0.3808,59274.0,59273.0,0.065257]
[1723899886532,0.3808,59274.0,59273.0,0.11555065]
[1723899886946,0.3808,59274.0,59273.0,0.065257]
[1723899889348,0.3808,59274.0,59273.0,0.13244872]
[1723899889539,0.3808,59274.0,59273.0,0.065257]
[1723899889951,0.3808,59274.0,59273.0,0.002]
[1723899892346,0.3808,59274.0,59273.0,0.08599921]
[1723899892557,0.444056,59274.0,59273.0,0.08599921]
[1723899892754,0.444056,59274.0,59273.0,0.002]
[1723899893345,0.444056,59274.0,59273.0,0.08599921]
[1723899893652,0.594056,59274.0,59273.0,0.002]
[1723899894857,0.594056,59274.0,59273.0,0.06927336]
[1723899895253,0.594056,59274.0,59273.0,0.002]
[1723899895557,0.594056,59274.0,59273.0,0.0692642]
[1723899896757,0.657312,59274.0,59273.0,0.0692642]
[1723899897150,0.594056,59274.0,59273.0,0.0692642]
[1723899897459,0.594056,59274.0,59273.0,0.002]
[1723899897954,0.594056,59274.0,59273.0,0.0692642]
[1723899898161,0.233256,59274.0,59273.0,0.0692642]
[1723899898460,0.594056,59274.0,59273.0,0.002]
[1723899901055,0.687356,59274.0,59273.0,0.002]
[1723899901762,0.687356,59274.0,59273.0,0.05242701]
[1723899904163,0.687356,59274.0,59273.0,0.002]
[1723899904464,0.687356,59274.0,59273.0,0.03913121]
[1723899905661,0.733756,59274.0,59273.0,0.03913121]
[1723899906754,0.797012,59274.0,59273.0,0.03737155]
[1723899908254,0.797012,59274.0,59273.0,0.03737177]
[1723899908552,0.436212,59274.0,59273.0,0.03737177]
[1723899908754,0.797012,59274.0,59273.0,0.03737177]
[1723899908966,1.703132,59274.0,59273.0,0.03737177]
[1723899910262,1.342332,59274.0,59273.0,0.03737177]
[1723899910467,1.703132,59274.0,59273.0,0.03737177]
[1723899910670,1.703132,59274.0,59273.0,0.00024034]
[1723899911053,1.639876,59274.0,59273.0,0.00024034]
[1723899911363,1.239876,59274.0,59273.0,0.00024034]
[1723899912263,0.733756,59274.0,59273.0,0.00024034]
[1723899913065,0.372956,59274.0,59273.0,0.00024034]
[1723899913263,0.733756,59274.0,59273.0,0.00024034]
[1723899916564,1.094556,59274.0,59273.0,0.00024034]
[1723899917258,0.063258,59272.0,59271.0,0.05043445]
[1723899917568,0.593258,59272.0,59271.0,0.05043445]
[1723899918264,0.063261,59270.0,59268.0,0.0672642]
[1723899918461,0.517362,59269.0,59268.0,0.0672642]
[1723899918662,0.957362,59269.0,59268.0,0.03713244]
[1723899918967,0.957362,59269.0,59265.0,0.00025322]
[1723899919268,0.864062,59269.0,59266.0,0.03713362]
[1723899919467,0.864062,59269.0,59267.0,0.03713362]
[1723899919663,0.0933,59268.0,59265.0,0.00025322]
[1723899919972,0.4633,59268.0,59266.0,0.03713376]
[1723899920265,0.4633,59268.0,59267.0,0.03713376]
[1723899920655,0.4643,59268.0,59267.0,0.03713376]
[1723899920857,0.83488467,59268.0,59267.0,0.03713376]
[1723899921173,0.83388467,59268.0,59265.0,0.00025322]
[1723899921364,0.063264,59267.0,59266.0,0.06925676]
[1723899921561,0.543264,59267.0,59266.0,0.002]
[1723899922264,0.543264,59267.0,59266.0,0.001]
[1723899922859,0.543264,59267.0,59265.0,0.00025322]
[1723899923062,0.7216,59266.0,59265.0,0.00025322]
[1723899923260,1.2516,59266.0,59265.0,0.00025322]
[1723899924259,1.2526,59266.0,59265.0,0.00125322]
[1723899924965,1.2526,59266.0,59265.0,0.00225322]
[1723899925568,1.315865,59266.0,59265.0,0.00225322]
[1723899927366,1.2526,59266.0,59265.0,0.00225322]
[1723899927764,1.3459,59266.0,59265.0,0.00225322]
[1723899929873,1.409165,59266.0,59265.0,0.00225322]
[1723899930061,1.239165,59266.0,59265.0,0.05268255]
[1723899930770,1.389165,59266.0,59265.0,0.05268255]
[1723899930958,1.389165,59266.0,59265.0,0.00225322]
[1723899932269,2.35863,59266.0,59265.0,0.00225322]
[1723899936271,2.295365,59266.0,59265.0,0.00225322]
[1723899936578,1.295865,59266.0,59265.0,0.00225322]
[1723899936775,1.389165,59266.0,59265.0,0.00225322]
[1723899937873,1.295865,59266.0,59265.0,0.00225322]
[1723899938363,1.295865,59266.0,59265.0,0.00125322]
[1723899938559,1.295865,59266.0,59265.0,0.00225322]
[1723899940172,1.315865,59266.0,59265.0,0.00225322]
[1723899941174,1.315865,59266.0,59265.0,0.00125322]
[1723899941367,1.315865,59266.0,59265.0,0.00225322]
[1723899941973,0.594265,59266.0,59265.0,0.00125322]
[1723899942175,1.315865,59266.0,59265.0,0.00125322]
[1723899942765,1.314865,59266.0,59265.0,0.00225322]
[1723899943071,1.315865,59266.0,59265.0,0.00225322]
[1723899944474,0.594265,59266.0,59265.0,0.00125322]
[1723899944681,1.315865,59266.0,59265.0,0.00225322]
[1723899945771,0.594265,59266.0,59265.0,0.00225322]
[1723899945974,1.315865,59266.0,59265.0,0.00225322]
[1723899947481,1.0826,59266.0,59265.0,0.05268255]
[1723899947777,0.3608,59282.0,59276.0,0.063254]
[1723899947978,0.5108,59282.0,59278.0,0.05036759]
[1723899948169,0.5108,59282.0,59279.0,0.05036759]
[1723899948571,0.3608,59282.0,59279.0,0.063251]
[1723899948780,0.3608,59282.0,59280.0,0.05036759]
[1723899949571,0.3618,59282.0,59279.0,0.11561859]
[1723899949777,0.3618,59282.0,59281.0,0.05036759]
[1723899949977,0.3608,59282.0,59281.0,0.05036759]
[1723899950174,0.3618,59282.0,59281.0,0.05036759]
[1723899950381,0.3618,59282.0,59280.0,0.065249]
[1723899950582,0.3618,59282.0,59280.0,0.11555379]
[1723899950776,0.3618,59282.0,59280.0,0.065249]
[1723899951779,0.3618,59282.0,59280.0,0.064249]
[1723899952082,0.3618,59282.0,59281.0,0.001]
[1723899952473,0.3608,59282.0,59281.0,0.001]
[1723899952674,0.3608,59282.0,59280.0,0.064249]
[1723899952873,0.3608,59282.0,59281.0,0.063249]
[1723899953477,0.3608,59282.0,59281.0,0.064249]
[1723899953780,0.3608,59282.0,59281.0,0.065249]
[1723899954084,0.18255444,59284.0,59281.0,0.065249]
[1723899954274,0.18255444,59284.0,59282.0,0.41110479]
[1723899954481,0.18255444,59284.0,59283.0,0.063247]
[1723899954780,0.18255444,59284.0,59283.0,0.67356903]
[1723899954983,0.18255444,59284.0,59283.0,1.07356903]
[1723899955175,0.18255444,59284.0,59283.0,1.00640627]
[1723899955774,0.18255444,59284.0,59283.0,1.07328118]
[1723899956180,0.18255444,59284.0,59283.0,0.970287]
[1723899956981,0.18255444,59284.0,59283.0,0.971287]
[1723899958476,0.18255444,59284.0,59283.0,1.034534]
[1723899958691,0.18255444,59284.0,59283.0,1.04425859]
[1723899958885,0.18255444,59284.0,59283.0,1.08137343]
[1723899960690,0.09122444,59284.0,59283.0,1.14462043]
[1723899960883,0.33711001,59294.0,59293.0,0.063236]
[1723899961085,0.33711001,59294.0,59293.0,1.184836]
[1723899961291,0.33711001,59294.0,59293.0,1.690796]
[1723899961792,0.33711001,59294.0,59293.0,1.74080336]
[1723899962187,0.33711001,59294.0,59293.0,1.34080336]
[1723899962391,0.33711001,59294.0,59293.0,1.30062341]
[1723899962992,0.33711001,59294.0,59293.0,1.30262341]
[1723899963585,0.33711001,59294.0,59293.0,1.292796]
[1723899963785,0.33711001,59294.0,59293.0,1.291796]
[1723899963984,0.33711001,59294.0,59293.0,1.292796]
[1723899964480,0.33711001,59294.0,59293.0,1.692796]
[1723899966092,0.18731001,59294.0,59293.0,1.692796]
[1723899966593,0.18731001,59294.0,59293.0,1.75950488]
[1723899966889,0.18731001,59294.0,59293.0,1.692796]
[1723899967092,0.18731001,59294.0,59293.0,1.75940107]
[1723899968580,0.18731001,59294.0,59293.0,0.786836]
[1723899968786,0.18731001,59294.0,59293.0,0.426036]
[1723899969391,0.18731001,59294.0,59293.0,0.4759995]
[1723899969695,0.18731001,59294.0,59293.0,0.47602431]
[1723899969892,0.18731001,59294.0,59293.0,0.426036]
[1723899971396,0.18731001,59294.0,59293.0,1.331996]
[1723899972489,0.18731001,59294.0,59293.0,1.39860107]
[1723899972683,0.18731001,59294.0,59293.0,1.39867644]
[1723899972888,0.18731001,59294.0,59293.0,1.331996]
[1723899973203,0.18731001,59294.0,59293.0,1.39867715]
[1723899973499,0.18731001,59294.0,59293.0,1.331996]
[1723899974299,0.18731001,59294.0,59293.0,0.426036]
[1723899975996,0.18731001,59294.0,59293.0,0.931996]
[1723899976197,0.18731001,59294.0,59293.0,1.331996]
[1723899976596,0.18731001,59294.0,59293.0,1.4604462]
[1723899976899,0.18731001,59294.0,59293.0,1.4604446]
[1723899977590,0.18731001,59294.0,59293.0,1.56135988]
[1723899978490,0.18731001,59294.0,59293.0,1.4604446]
[1723899979393,0.18731001,59294.0,59293.0,1.61678678]
[1723899981103,0.18731001,59294.0,59293.0,1.68001953]
[1723899981803,0.18731001,59294.0,59293.0,1.61678353]
[1723899982006,0.18731001,59294.0,59293.0,0.71082353]
[1723899983390,0.18731001,59294.0,59293.0,0.64758753]
[1723899983588,0.21731001,59294.0,59293.0,0.4912486]
[1723899983792,0.18731001,59294.0,59293.0,0.65507534]
[1723899984197,0.19731001,59294.0,59293.0,0.65507534]
[1723899984395,0.19731001,59294.0,59293.0,0.5544846]
[1723899984700,0.19731001,59294.0,59293.0,0.4912486]
[1723899985092,0.26054501,59294.0,59293.0,0.4912486]
[1723899985587,0.26054501,59294.0,59293.0,0.49127101]
[1723899986493,0.26054501,59294.0,59293.0,0.59186175]
[1723899987089,0.26054501,59294.0,59293.0,0.49127101]
[1723899988697,0.26054501,59294.0,59293.0,0.64763756]
[1723899988903,0.26054501,59294.0,59293.0,0.49127101]
[1723899989400,0.26054501,59294.0,59293.0,0.59195638]
[1723899991711,0.26054501,59294.0,59293.0,0.49127101]
[1723899991900,0.26054501,59294.0,59293.0,0.59195638]
[1723899992101,0.26054501,59294.0,59293.0,0.49127101]
[1723899992406,0.19731001,59294.0,59293.0,0.49127101]
[1723899994311,0.19731001,59294.0,59293.0,0.491269]
[1723899995200,0.19731001,59294.0,59293.0,0.59195437]
[1723899996105,0.19731001,59294.0,59293.0,0.491269]
[1723899997596,0.26054501,59294.0,59293.0,0.491269]
[1723899997800,0.40054501,59294.0,59293.0,0.002]
[1723899998005,0.40054501,59294.0,59293.0,0.06911528]
[1723899998211,0.40054501,59294.0,59293.0,0.002]
[1723899998414,0.40054501,59294.0,59290.0,0.050347]
[1723899998415,1.30650501,59294.0,59290.0,0.050347]
[1723899998597,0.2333,59293.0,59290.0,0.050347]
[1723899998803,0.7133,59293.0,59290.0,0.050347]
[1723899999003,0.59816,59292.0,59290.0,0.050347]
[1723899999309,0.59816,59292.0,59287.0,0.06711528]
[1723899999310,1.14816,59292.0,59287.0,0.06711528]
[1723899999516,1.14816,59292.0,59280.0,0.16393537]
[1723899999517,0.42404,59289.0,59288.0,0.05032418]
[1723899999702,0.063242,59287.0,59286.0,0.06711528]
[1723899999903,0.063243,59286.0,59285.0,0.06711528]
[1723900000105,0.063244,59285.0,59284.0,0.06711528]
[1723900000300,0.443244,59285.0,59284.0,0.06711528]
[1723900000716,0.063246,59284.0,59283.0,0.06711528]
[1723900000914,0.063246,59284.0,59280.0,0.08388565]
[1723900000915,0.063249,59281.0,59280.0,0.08388565]
[1723900001106,0.5733,59281.0,59278.0,0.06735528]
[1723900001312,0.5733,59281.0,59278.0,0.00025322]
[1723900001313,0.063251,59279.0,59278.0,0.00025322]
[1723900001612,0.063256,59274.0,59273.0,0.05034017]
[1723900001915,0.063257,59273.0,59272.0,0.05034017]
[1723900002214,0.249257,59273.0,59272.0,0.05034017]
[1723900002402,0.249257,59273.0,59270.0,0.05034017]
[1723900003408,0.249257,59273.0,59269.0,0.05034017]
[1723900003808,0.250257,59273.0,59269.0,0.05034017]
[1723900004410,0.250257,59273.0,59268.0,0.41114017]
[1723900005211,0.250257,59273.0,59270.0,0.002]
[1723900005727,0.063258,59272.0,59270.0,0.002]
[1723900006020,0.183258,59272.0,59268.0,0.00524]
[1723900006235,0.063259,59271.0,59269.0,0.003]
[1723900006521,0.223259,59271.0,59269.0,0.003]
[1723900006818,0.223259,59271.0,59270.0,0.004]
[1723900007215,0.223259,59271.0,59270.0,0.002]
[1723900008018,0.223259,59271.0,59270.0,0.004]
[1723900008516,0.16,59271.0,59270.0,0.004]
[1723900008724,0.16,59271.0,59270.0,0.06726]
[1723900010221,0.16,59271.0,59270.0,0.06526]
[1723900010926,0.2402525,59277.0,59270.0,1.31766]
[1723900010927,0.0002525,59277.0,59270.0,1.31766]
[1723900011225,0.0502525,59277.0,59276.0,0.3608]
[1723900011521,0.0502525,59277.0,59276.0,0.424054]
[1723900012419,0.0502525,59277.0,59276.0,0.49094024]
[1723900012826,0.0512525,59277.0,59276.0,0.49094024]
[1723900013325,0.0522525,59277.0,59276.0,0.424054]
[1723900013624,0.0522525,59277.0,59276.0,0.49094024]
[1723900014423,0.0522525,59277.0,59276.0,0.424054]
[1723900015225,0.0512525,59277.0,59276.0,0.4910032]
[1723900015414,0.0522525,59277.0,59276.0,0.424054]
[1723900016317,0.0522525,59277.0,59276.0,0.49101026]
[1723900016511,0.0522525,59277.0,59276.0,0.424054]
[1723900018221,0.05592499,59285.0,59276.0,0.424054]
[1723900018222,0.00088,59291.0,59276.0,1.50022]
[1723900018419,0.3608,59300.0,59293.0,0.063236]
[1723900018420,0.18731001,59294.0,59293.0,0.063236]
[1723900018619,0.18731001,59294.0,59293.0,0.13015391]
[1723900018825,0.18731001,59294.0,59293.0,0.69765197]
[1723900019216,0.13470979,59294.0,59293.0,1.09765197]
[1723900019421,0.13470979,59294.0,59293.0,1.19793864]
[1723900019617,0.13570979,59294.0,59293.0,1.09865197]
[1723900019817,0.13570979,59294.0,59293.0,0.29298236]
[1723900020022,0.13570979,59294.0,59293.0,0.79894236]
[1723900020229,0.13670979,59294.0,59293.0,0.79994236]
[1723900020525,0.13670979,59294.0,59293.0,0.19369197]
[1723900020914,0.13670979,59294.0,59293.0,0.69965197]
[1723900021915,0.13670979,59294.0,59293.0,0.13045597]
[1723900022120,0.20994479,59294.0,59293.0,0.002]
[1723900022319,0.13670979,59294.0,59293.0,0.11539562]
[1723900022530,0.13670979,59294.0,59293.0,0.065236]
[1723900023326,0.13670979,59294.0,59293.0,0.13210462]
[1723900023537,0.13670979,59294.0,59293.0,0.065236]
[1723900024335,0.13670979,59294.0,59293.0,0.13208752]
[1723900027633,0.13670979,59294.0,59293.0,0.065236]
[1723900028527,0.14670979,59294.0,59293.0,0.065236]
[1723900028933,0.13670979,59294.0,59293.0,0.065236]
[1723900029437,0.14670979,59294.0,59293.0,0.065236]
[1723900030124,0.13670979,59294.0,59293.0,0.065236]
[1723900030628,0.16670979,59294.0,59293.0,0.065236]
[1723900035333,0.16670979,59294.0,59293.0,0.11535033]
[1723900036538,0.16670979,59294.0,59293.0,0.065236]
[1723900038443,0.22994479,59294.0,59293.0,0.002]
[1723900039340,0.22994479,59294.0,59293.0,0.06885152]
[1723900040640,0.22994479,59294.0,59293.0,0.002]
[1723900042239,0.16670979,59294.0,59293.0,0.19370459]
[1723900043142,0.16670979,59294.0,59293.0,0.27746758]
[1723900043542,0.16670979,59294.0,59293.0,0.27749756]
[1723900043736,0.29317979,59294.0,59293.0,0.002]
[1723900043938,0.29317979,59294.0,59292.0,0.05029594]
[1723900043939,0.50596,59293.0,59292.0,0.05029594]
[1723900044141,0.7408,59293.0,59289.0,0.05029762]
[1723900044341,0.7408,59293.0,59291.0,0.05030174]
[1723900044737,0.9108,59293.0,59291.0,0.05030174]
[1723900045237,0.974036,59293.0,59292.0,0.001]
[1723900045747,0.975036,59293.0,59292.0,0.002]
[1723900045932,0.444236,59293.0,59292.0,0.06905589]
[1723900046538,0.444236,59293.0,59292.0,0.002]
[1723900047143,0.445236,59293.0,59292.0,0.001]
[1723900048044,0.445236,59293.0,59292.0,0.002]
[1723900048245,0.382,59293.0,59292.0,0.065237]
[1723900048436,0.002,59293.0,59292.0,0.29400333]
[1723900048633,0.13470979,59294.0,59292.0,0.29400333]
[1723900048836,0.17470979,59294.0,59293.0,0.12846315]
[1723900049248,0.17470979,59294.0,59293.0,0.19169915]
[1723900049439,0.13470979,59294.0,59293.0,0.19169915]
[1723900049850,0.13570979,59294.0,59293.0,0.19169915]
[1723900050345,0.20470979,59294.0,59293.0,0.19169915]
[1723900050544,0.20570979,59294.0,59293.0,0.19269915]
[1723900050946,0.20570979,59294.0,59293.0,0.19269953]
[1723900051535,0.20570979,59294.0,59293.0,0.19369953]
[1723900054142,0.20570979,59294.0,59293.0,0.55449953]
[1723900054342,0.20570979,59294.0,59293.0,0.65478992]
[1723900056555,0.20570979,59294.0,59293.0,0.65515807]
[1723900056744,0.20570979,59294.0,59293.0,0.65515828]
[1723900057651,0.20570979,59294.0,59293.0,0.55449953]
[1723900059439,0.26894479,59294.0,59293.0,0.55449953]
[1723900059754,0.26894479,59294.0,59293.0,0.59193506]
[1723900060946,0.26894479,59294.0,59293.0,0.65517106]
[1723900061143,0.26894479,59294.0,59293.0,0.59193506]
[1723900063355,0.83297979,59294.0,59293.0,0.03911446]
[1723900063652,0.83297979,59294.0,59293.0,0.002]
[1723900063653,1.33893979,59294.0,59293.0,0.002]
[1723900064642,1.73893979,59294.0,59293.0,0.002]
[1723900064841,0.063237,59292.0,59291.0,0.06714438]
[1723900065044,0.706537,59292.0,59291.0,0.06714438]
[1723900065740,1.782497,59292.0,59291.0,0.06714438]
[1723900065955,0.876537,59292.0,59291.0,0.06714438]
[1723900066346,0.063238,59291.0,59290.0,0.06714438]
[1723900066547,0.403238,59291.0,59290.0,0.06714438]
[1723900067659,0.404238,59291.0,59290.0,0.06814438]
[1723900067956,0.499538,59291.0,59290.0,0.06814438]
[1723900069258,0.499538,59291.0,59290.0,0.001]
[1723900069662,0.501538,59291.0,59290.0,0.002]
[1723900070652,0.501538,59291.0,59290.0,0.3628]
[1723900071452,0.343,59291.0,59290.0,0.59162856]
[1723900071754,0.003,59291.0,59290.0,0.62874299]
[1723900071954,0.003,59291.0,59290.0,0.7851047]
[1723900072656,0.003,59291.0,59290.0,0.79515146]
[1723900072960,0.003,59291.0,59290.0,0.63878975]
[1723900073559,0.003,59291.0,59290.0,0.63877782]
[1723900074349,0.003,59291.0,59290.0,0.70288218]
[1723900075145,0.003,59291.0,59290.0,0.34208218]
[1723900075462,0.003,59291.0,59290.0,0.72047798]
[1723900076962,0.063223,59305.0,59291.0,0.063238]
[1723900077260,0.37987931,59304.0,59302.0,0.44460414]
[1723900077457,0.37987931,59304.0,59303.0,0.063225]
[1723900077656,0.37987931,59304.0,59303.0,0.22878218]
[1723900078054,0.31987931,59304.0,59303.0,0.10033227]
[1723900078248,0.31987931,59304.0,59303.0,0.36644342]
[1723900078451,0.31987931,59304.0,59303.0,0.32933615]
[1723900078651,0.31987931,59304.0,59303.0,0.36644197]
[1723900079258,0.31987931,59304.0,59303.0,0.32933615]
[1723900079563,0.31987931,59304.0,59303.0,0.22877118]
[1723900080262,0.31987931,59304.0,59303.0,0.23077118]
[1723900080767,0.31987931,59304.0,59303.0,0.267877]
[1723900081065,0.31987931,59304.0,59303.0,0.19366391]
[1723900081262,0.31987931,59304.0,59303.0,0.2678734]
[1723900082165,0.31987931,59304.0,59303.0,0.23076758]
[1723900083362,0.31987931,59304.0,59303.0,0.31442753]
[1723900083668,0.31987931,59304.0,59303.0,0.3144274]
[1723900084050,0.32987931,59304.0,59303.0,0.3144274]
[1723900084551,0.32987931,59304.0,59303.0,0.31442696]
[1723900085361,0.39310331,59304.0,59303.0,0.002]
[1723900086966,1.28228331,59304.0,59303.0,0.002]
[1723900087163,1.68228331,59304.0,59303.0,0.002]
[1723900087365,0.063225,59303.0,59299.0,0.3608]
[1723900087558,0.621925,59303.0,59299.0,0.3608]
[1723900087756,1.127805,59303.0,59299.0,0.3608]
[1723900088065,0.063233,59296.0,59295.0,0.05020786]
[1723900088263,0.2333,59295.0,59292.0,0.05020786]
[1723900088463,0.2333,59295.0,59289.0,0.05020786]
[1723900088464,0.063239,59290.0,59289.0,0.05020786]
[1723900088658,0.06324,59289.0,59288.0,0.05020786]
[1723900088859,0.31874,59289.0,59288.0,0.05020786]
[1723900089463,0.063241,59288.0,59287.0,0.05020786]
[1723900089752,0.213241,59288.0,59287.0,0.05020786]
[1723900089971,0.213241,59288.0,59286.0,0.000253]
[1723900089972,0.063242,59287.0,59286.0,0.05046086]
[1723900090159,0.233242,59287.0,59286.0,0.05046086]
[1723900090561,0.233242,59287.0,59286.0,0.000253]
[1723900091366,0.235242,59287.0,59286.0,0.000253]
[1723900093468,0.235242,59287.0,59286.0,0.05043691]
[1723900098176,0.235242,59287.0,59286.0,0.000253]
[1723900098570,0.235242,59287.0,59286.0,0.0504347]
[1723900099373,0.235242,59287.0,59286.0,0.000253]
[1723900099769,0.235242,59287.0,59286.0,0.06719682]
[1723900100073,0.235242,59287.0,59286.0,0.000253]
[1723900102777,0.235242,59287.0,59286.0,0.05042675]
[1723900104582,0.235242,59287.0,59286.0,0.000253]
[1723900108282,0.235242,59287.0,59286.0,0.05042675]
[1723900111782,0.235242,59287.0,59286.0,0.000253]
[1723900115296,0.235242,59287.0,59286.0,0.22929987]
[1723900116178,0.235242,59287.0,59286.0,0.29254287]
[1723900116377,0.235242,59287.0,59286.0,0.1919779]
[1723900117490,0.235242,59287.0,59286.0,0.29267873]
[1723900117880,0.235242,59287.0,59286.0,0.2926783]
[1723900120985,0.3608,59292.0,59286.0,1.09797747]
[1723900121193,0.3608,59307.0,59291.0,0.594]
[1723900121491,0.00997024,59307.0,59303.0,0.16392573]
[1723900121783,0.00997024,59307.0,59303.0,0.19170647]
[1723900122385,0.06322,59308.0,59303.0,0.19170647]
[1723900122889,0.06322,59308.0,59303.0,0.29221317]
[1723900123089,0.32087931,59304.0,59303.0,0.55350647]
[1723900124289,0.32087931,59304.0,59303.0,1.46038647]
[1723900124883,0.32087931,59304.0,59303.0,1.06038647]
[1723900126390,0.32087931,59304.0,59303.0,1.0154701]
[1723900126898,0.32087931,59304.0,59303.0,0.63802496]
[1723900127289,0.32087931,59304.0,59303.0,0.426025]
[1723900128288,0.32087931,59304.0,59303.0,0.065225]
[1723900128488,0.32087931,59304.0,59303.0,0.426025]
[1723900129796,0.32087931,59304.0,59303.0,0.065225]
[1723900129986,0.32087931,59304.0,59303.0,0.426025]
[1723900130190,0.32087931,59304.0,59303.0,0.065225]
[1723900130385,0.32087931,59304.0,59303.0,0.426025]
[1723900132709,0.32087931,59304.0,59303.0,0.931905]
[1723900132910,0.32087931,59304.0,59303.0,1.54389733]
[1723900133415,0.32087931,59304.0,59303.0,1.4154701]
[1723900133913,0.32087931,59304.0,59303.0,1.39513]
[1723900134120,0.32087931,59304.0,59303.0,1.43223287]
[1723900134418,0.15540983,59314.0,59303.0,1.707449]
[1723900134606,0.15540983,59314.0,59313.0,1.08123]
[1723900134607,0.14740983,59314.0,59313.0,1.08123]
[1723900134808,0.14740983,59314.0,59313.0,1.83593604]
[1723900135019,0.14740983,59314.0,59313.0,2.15253455]
[1723900135411,0.14740983,59314.0,59313.0,2.11543636]
[1723900135905,0.14740983,59314.0,59313.0,2.16483636]
[1723900136309,0.14740983,59314.0,59313.0,2.16583636]
[1723900136510,0.14740983,59314.0,59313.0,2.16683636]
[1723900136916,0.14740983,59314.0,59313.0,2.2599391]
[1723900137521,0.14740983,59314.0,59313.0,2.13153274]
[1723900138421,0.14740983,59314.0,59313.0,2.0482308]
[1723900140916,0.14740983,59314.0,59313.0,2.25993524]
[1723900142512,0.14740983,59314.0,59313.0,1.24152024]
[1723900142727,0.14740983,59314.0,59313.0,0.4358158]
[1723900145221,0.14740983,59314.0,59313.0,1.3024158]
[1723900145527,0.14740983,59314.0,59313.0,1.43082262]
[1723900145725,0.14740983,59314.0,59313.0,1.51414903]
[1723900146221,0.14740983,59314.0,59313.0,1.66402262]
[1723900147728,0.14740983,59314.0,59313.0,2.06402262]
[1723900148417,0.14740983,59314.0,59313.0,2.16443848]
[1723900148622,0.14740983,59314.0,59313.0,2.0640191]
[1723900150540,0.14740983,59314.0,59313.0,2.22030718]
[1723900151225,0.14740983,59314.0,59313.0,2.1272341]
[1723900151429,0.14740983,59314.0,59313.0,2.28351752]
[1723900152433,0.14740983,59314.0,59313.0,1.9988308]
[1723900152635,0.14740983,59314.0,59313.0,2.46765023]
[1723900152829,0.14740983,59314.0,59313.0,1.9988308]
[1723900153132,0.14740983,59314.0,59313.0,2.60126707]
[1723900154824,0.29588985,59325.0,59324.0,0.063203]
[1723900155029,0.29588985,59325.0,59324.0,1.302659]
[1723900156019,0.29588985,59325.0,59324.0,1.304659]
[1723900157431,0.29588985,59325.0,59324.0,1.15830419]
[1723900157735,0.29588985,59325.0,59324.0,1.25849143]
[1723900158234,0.29588985,59325.0,59324.0,0.92510419]
[1723900158530,0.29588985,59325.0,59324.0,1.02529143]
[1723900158838,0.29588985,59325.0,59324.0,0.91519249]
[1723900159029,0.30588985,59325.0,59324.0,0.91519249]
[1723900160331,0.30588985,59325.0,59324.0,1.01537973]
[1723900160734,0.29588985,59325.0,59324.0,1.01537973]
[1723900161235,0.29588985,59325.0,59324.0,0.91519249]
[1723900162039,0.29588985,59325.0,59324.0,0.55439172]
[1723900162932,0.30588985,59325.0,59324.0,0.55439172]
[1723900163641,0.30588985,59325.0,59324.0,0.7106631]
[1723900164239,0.30588985,59325.0,59324.0,0.3498631]
[1723900164429,0.30588985,59325.0,59324.0,0.7106631]
[1723900166644,0.30588985,59325.0,59324.0,0.71066595]
[1723900167645,0.30588985,59325.0,59324.0,0.64746295]